Cogmind - Beta 16.1 @@@ ROGUE MODE // 2026.04.12 @ 01:12:57 Player: Maelyn Result: Destroyed by D-53 Grenadier with Mini Grenade Launcher Performance ------------- Evolutions (0) 0 Regions Visited (2) 400 Robots Destroyed (35) 175 Value Destroyed (593) 593 Prototype IDs (0) 0 Alien Tech Used (0) 0 Bonus (0) 0 TOTAL SCORE: 1168 Bonus ------- None Cogmind --------- Core Integrity 0/250 Matter 184/300 Energy 100/100 System Corruption 0% Temperature Cool (0) Movement Core (350) Ox6 Location -10/Mines Parts ------- > --- POWER (1) -------- (None) > --- PROPULSION (2) --- (None) > --- UTILITY (2) ------ Improved Heat Sink Large Storage Unit > --- WEAPON (2) ------- (None) > --- INVENTORY (15) --- Light Ion Engine Aluminum Leg Aluminum Leg Small Storage Unit Medium Storage Unit Large Battery (200) Sensor Array Signal Interpreter Hacking Suite Improved Trap Extractor (0/6) EM Pulse Gun Particle Gun Field Laser Beam Cannon Peak State ------------ > --- POWER ------------ Ion Engine > --- PROPULSION ------- Aluminum Leg Aluminum Leg > --- UTILITY ---------- Improved Heat Sink Large Storage Unit > --- WEAPON ----------- Beam Cannon Beam Cannon > --- INVENTORY -------- Light Ion Engine Light Treads Aluminum Leg Aluminum Leg Small Storage Unit Medium Storage Unit Large Battery Sensor Array Signal Interpreter Hacking Suite Improved Trap Extractor EM Pulse Gun Particle Gun Grenade Launcher [Rating: 11] Favorites ----------- Power Ion Engine Engine Ion Engine Propulsion Light Treads Treads Light Treads Leg Aluminum Leg Utility Large Storage Unit Device Improved Heat Sink Storage Large Storage Unit Weapon Assault Rifle Energy Cannon Beam Cannon Ballistic Gun Assault Rifle Launcher Grenade Launcher Build | -11 -10 -10 ------- Run | Yrd Mat Min Slots Evolved . | . . . Power . | . . . Propulsion . | . . . Utility . | . . . Weapon . | . . . Parts Attached 17 | 7 6 4 Power 3 | 2 1 . Engine 3 | 2 1 . Core . | . . . Reactor . | . . . Propulsion 5 | 2 1 2 Treads 3 | 2 1 . Leg 2 | . . 2 Wheel . | . . . Hover . | . . . Flight . | . . . Utility 4 | 1 2 1 Device 1 | . . 1 Storage 3 | 1 2 . Processor . | . . . Hackware . | . . . Protection . | . . . Artifact . | . . . Weapon 5 | 2 2 1 Energy Gun . | . . . Energy Cannon 2 | . 2 . Ballistic Gun 2 | 2 . . Ballistic Cannon . | . . . Launcher 1 | . . 1 Special Weapon . | . . . Impact Weapon . | . . . Slashing Weapon . | . . . Piercing Weapon . | . . . Special Melee Weapon . | . . . Unidentified Prototypes . | . . . Parts Lost 8 | . 2 6 Power 2 | . 1 1 Propulsion 3 | . . 3 Utility . | . . . Weapon 3 | . 1 2 Highest Loss Streak 5 | . 1 5 To Critical Strikes 1 | . 1 . Average Backups 9 | 3 8 12 Power 1 | . 1 1 Propulsion 2 | 1 2 2 Utility 4 | . 3 6 Weapon 2 | 1 1 3 Tool/Special . | . . . Unused Backups 10 | . . 10 Power . | . . . Propulsion 2 | . . 2 Utility 5 | . . 5 Weapon 3 | . . 3 Tool/Special . | . . . Average Slot Usage (%) 91 | . 86 98 Engine 12 | . 12 13 Treads 20 | . 28 7 Leg 6 | . . 19 Device 4 | . . 11 Storage 20 | . 22 16 Energy Cannon 10 | . 2 27 Ballistic Gun 14 | . 21 . Peak Build Rating 11 | 6 8 11 Average Rating 7 | 4 6 10 On Entrance 4 | . 6 8 Avg Prop Armor Cover (%) . | . . . Naked Turns . | . . . Heaviest Build 34 | 14 34 34 Greatest Support 40 | 40 40 40 Greatest Overweight (x) 3 | . . 3 Average Overweight (x) . | . . . Largest Inventory Capacity 15 | 8 15 15 Average Capacity 12 | 7 12 15 Most Carried 15 | 6 12 15 Average Carried 9 | 4 8 12 Final Capacity 15 | 8 15 15 Final Carried 14 | 4 10 14 Class Distribution -------------------- 100% | Mutant Dominant Class ---------------- Mutant | -10/Materials Mutant | -10/Mines Resources | -11 -10 -10 ----------- Run | Yrd Mat Min Matter Collected 560 | 219 231 110 Remotely . | . . . Salvage Created 969 | 23 501 445 Parts 74 | 3 47 24 Haulers Intercepted 2 | . 2 . Recyclers Shooed 1 | . 1 . Parts Field Recycled . | . . . Retrieved Matter . | . . . Parts Self-Destructed . | . . . Prevented . | . . . Parts Restored . | . . . Kills | -11 -10 -10 ------- Run | Yrd Mat Min Combat Hostiles Destroyed 21 | . 15 6 Guns 15 | . 15 . Cannons 6 | . . 6 Classes Destroyed 8 | 1 6 1 Worker 2 | . . 2 Tunneler 2 | 1 . 1 Hauler 2 | . 2 . Recycler 3 | . 1 2 Operator 2 | . 2 . Watcher 3 | . 3 . Swarmer 12 | . 12 . Grunt 9 | . 3 6 Best Kill Streak 4 | 1 4 3 Combat Bots Only 4 | . 4 2 Max Kills in Single Turn 2 | 1 1 2 Gunslinging . | . . . Exploded . | . . . Melee . | . . . Uniques/NPCs Destroyed . | . . . Combat | -11 -10 -10 -------- Run | Yrd Mat Min Hostile Shots Fired 139 | . 97 42 Missed 40 | . 31 9 Hits 99 | . 66 33 Projectile 99 | . 66 33 AOE 10 | . . 10 Critical Strikes 1 | . 1 . Damage Taken 1268 | . 538 730 Core 255 | . 82 173 Absorbed by Shields . | . . . Core Remaining (%) 100 | 100 . . Volleys Fired 91 | 1 67 23 Largest 2 | 2 2 2 Hottest 120 | 40 40 120 Shots Fired 155 | 2 109 44 Gun 111 | 2 109 . Cannon 41 | . . 41 Launcher 3 | . . 3 Special . | . . . Kinetic 111 | 2 109 . Thermal 41 | . . 41 Explosive 3 | . . 3 Electromagnetic . | . . . Robot Hit Streak 6 | 1 6 5 Robot Miss Streak 4 | 1 4 4 Penetration Max . | . . . Secondary Targets . | . . . Shots Hit Robots 87 | 1 62 24 Core Hits 49 | 1 30 18 Critical Kills 1 | . . 1 Critical Parts Destroyed . | . . . Critical Strikes 1 | . . 1 Meltdown 1 | . . 1 Melee Attacks . | . . . Impact . | . . . Slashing . | . . . Piercing . | . . . Sneak Attacks . | . . . Combat Hostiles . | . . . Follow-up Attacks . | . . . Damage Inflicted 1452 | 15 867 570 Guns 860 | 14 846 . Cannons 414 | . . 414 Explosions 156 | . . 156 Melee . | . . . Ramming 22 | 1 21 . Kinetic 860 | 14 846 . Thermal 414 | . . 414 Explosive 156 | . . 156 Electromagnetic . | . . . Impact . | . . . Slashing . | . . . Piercing . | . . . Highest Corruption . | . . . Average Corruption . | . . . Corruption Purged . | . . . Corruption Blocked . | . . . Overload Shots . | . . . Overflow Damage . | . . . Projectiles . | . . . Explosions . | . . . Melee . | . . . Knockbacks . | . . . Impact . | . . . Kinetic . | . . . Secondary . | . . . Self-Inflicted Damage . | . . . Shots . | . . . Rammed 4 | 1 3 . Targets Rammed 4 | 1 3 . Kicked . | . . . Crushed . | . . . Highest Temperature 354 | . . 354 Average Temperature 123 | . . 123 Received Heat Transfer 192 | . 30 162 Effects 1 | . . 1 Interference 1 | . . 1 Siege Activations . | . . . Martial Activations . | . . . Shielding Activations . | . . . Robots Disrupted . | . . . Combat Hostiles . | . . . Robots Corrupted . | . . . Combat Hostiles . | . . . Parts Fried . | . . . Impact Corruptions . | . . . Robots Melted 1 | . . 1 Combat Hostiles . | . . . Parts Melted 4 | . . 4 Heat Transferred 888 | . . 888 Parts Sabotaged . | . . . Parts Stolen . | . . . Parts Stripped . | . . . Power Chain Reactions . | . . . Alert | -11 -10 -10 ------- Run | Yrd Mat Min Maximum Alert Level 1 | . 1 . Low Security (%) 99 | 100 99 100 Level 1 . | . . . Level 2 . | . . . Level 3 . | . . . Level 4 . | . . . Level 5 . | . . . High Security . | . . . Max Security . | . . . Peak Influence 202 | . 202 96 Initial 36 | . . 36 Average 68 | . 96 25 Influence Increases 657 | 5 473 179 Destroy 0b10 Robot/C 420 | . 300 120 Destroy 0b10 Robot/NC 70 | 5 40 25 Destroy Leader 100 | . 70 30 Disable Machine 15 | . 15 . Destroy Structure 7 | . 3 4 Lose Combat Pursuer 45 | . 45 . Influence Decreases 657 | 5 379 273 Entered New Map 58 | . . 58 Time Decay 550 | 5 359 186 Lost Part 49 | . 20 29 Squads Dispatched 2 | . 2 . Investigation . | . . . Extermination . | . . . Reinforcement 2 | . 2 . Assault . | . . . Garrison . | . . . Intercept . | . . . Searches Triggered . | . . . Construction Impeded . | . . . Haulers Reinforced . | . . . Active Scanning Responses . | . . . Cargo Convoy Interrupts . | . . . Stealth | -11 -10 -10 --------- Run | Yrd Mat Min Distress Signals 1 | . 1 . Communications Jammed . | . . . Distress Signals . | . . . Times Spotted 42 | . 34 8 Peak Tracking Total 5 | . 5 2 Tactical Retreats 2 | . 2 . Traps | -11 -10 -10 ------- Run | Yrd Mat Min Traps Triggered 1 | . . 1 Indirectly . | . . . Trap Hack Attempts . | . . . Triggered . | . . . Disarmed . | . . . Reprogrammed . | . . . Reused . | . . . Traps Extracted . | . . . Installed . | . . . Triggered . | . . . Machines | -11 -10 -10 ---------- Run | Yrd Mat Min Machines Disabled 1 | . 1 . Max in Single Turn 1 | . 1 . Machines Repaired . | . . . Machines Dismantled . | . . . Machines Sabotaged . | . . . Overloaded Fab Kills . | . . . Hacking | -11 -10 -10 --------- Run | Yrd Mat Min Machines Accessed 3 | . 2 1 Terminals . | . . . Fabricators . | . . . Repair Stations . | . . . Recycling Units 2 | . 2 . Scanalyzers . | . . . Garrison Access . | . . . Total Hacks 3 | . 2 1 Successful 3 | . 2 1 Failed . | . . . Catastrophic . | . . . Database Lockouts . | . . . Manual . | . . . Terminals . | . . . Fabricators . | . . . Repair Stations . | . . . Recycling Units 2 | . 2 . Scanalyzers . | . . . Garrison Access . | . . . Terminal Hacks 1 | . . 1 Open Door 1 | . . 1 Fabricator Hacks . | . . . Repair Station Hacks . | . . . Recycling Unit Hacks 2 | . 2 . Report Inventory 2 | . 2 . Scanalyzer . | . . . Garrison Access Hacks . | . . . Unauthorized Hacks . | . . . Terminals . | . . . Fabricators . | . . . Repair Stations . | . . . Recycling Units . | . . . Scanalyzers . | . . . Garrison Access . | . . . Data Cores Recovered . | . . . Used . | . . . Hacking Detections . | . . . Full Trace Events . | . . . Feedback Events . | . . . Feedback Blocked . | . . . Robot Schematics Acquired . | . . . Robots Built . | . . . Authchips . | . . . Time . | . . . Total Robot Build Rating . | . . . Part Schematics Acquired . | . . . Parts Built . | . . . Authchips . | . . . Time . | . . . Total Part Build Rating . | . . . Part Studies Acquired . | . . . Parts Repaired . | . . . Time . | . . . Parts Recycled . | . . . Recycled Matter . | . . . Retrieved Matter . | . . . Retrieved Components . | . . . Parts Scanalyzed . | . . . Part Schematics Acquired . | . . . Parts Damaged . | . . . Bothacking | -11 -10 -10 ------------ Run | Yrd Mat Min Used RIF Installer . | . . . Robots Hacked . | . . . Non-combat . | . . . Combat . | . . . Robot Hacks Applied . | . . . Relay Couplers Released . | . . . Fabnet Peak Effective % . | . . . Robots Rewired . | . . . Allies Hacked . | . . . Hacks Repelled . | . . . Allies | -11 -10 -10 -------- Run | Yrd Mat Min Total Allies . | . . . Largest Group . | . . . Highest-Rated Group . | . . . Highest-Rated Ally . | . . . Total Orders . | . . . Ally Attacks . | . . . Total Damage . | . . . Kills . | . . . Allies Corrupted . | . . . Allies Melted . | . . . Intel | -11 -10 -10 ------- Run | Yrd Mat Min Active Infowar (turns) . | . . . Robot Analysis Total . | . . . Derelict Logs Recovered 1 | . . 1 Drone Launches . | . . . Drone Recoveries . | . . . Exploration | -11 -10 -10 ------------- Run | Yrd Mat Min Turns Passed 2111 | 117 1306 688 Spaces Moved 1055 | 61 668 326 Core 1 | 1 . . Treads 810 | 60 668 82 Legs 244 | . . 244 Wheels . | . . . Hover . | . . . Flight . | . . . Fastest Speed 50 | 50 160 160 Average Speed 167 | 158 160 185 Slowest Speed 330 | 160 160 330 Overloaded Moves . | . . . Propulsion Burnouts . | . . . Robots Hopped . | . . . Potential Cave-ins . | . . . Cave-ins Triggered . | . . . Exploration Rate (%) 53 | 4 93 63 Regions Visited 2 Branch Regions 1 Pre-discovered Areas 1 | . . 1 Known Exits Taken . | . . . Unknown Exits Taken 2 | 1 1 . Scrap Searched . | . . . Spaces Dug . | . . . Terrain Destroyed 5 | . . 5 Melee . | . . . Projectile . | . . . AOE 5 | . . 5 Terrain Rammed . | . . . Walls Destroyed . | . . . Machines Disabled . | . . . Actions | -11 -10 -10 --------- Run | Yrd Mat Min Total 1237 | 77 794 366 Wait 48 | . 41 7 Move 1053 | 60 667 326 Hop . | . . . Pick Up 18 | 7 7 4 Fast Attach 9 | 4 3 2 Attach 3 | 2 1 . Detach 2 | . 1 1 Swap 5 | 1 2 2 Drop 4 | 1 2 1 Fire 91 | 1 67 23 Melee . | . . . Ram . | . . . Kick . | . . . Crush 4 | 1 3 . Escape Stasis . | . . . Rewire . | . . . Trap . | . . . Miscellaneous . | . . . Route ------- -11/Scrapyard -10/Materials (discovered 5 exits: [*Mat x3] / *Min / [*Sub]) -10/Mines (discovered 1 exit: [*Mat]) History --------- Turn | Location | Event 14 | -11/Scrapyard | Discovered new exit (range 15) 118 | -11/Scrapyard | Entered Materials 300 | -10/Materials | Discovered new exit (range 7) 309 | -10/Materials | Build established: Mutant 741 | -10/Materials | Discovered new exit (range 14) 927 | -10/Materials | Discovered new exit (range 15) 1032 | -10/Materials | Discovered new exit (range 10) 1222 | -10/Materials | Discovered new exit (range 13) 1424 | -10/Materials | Entered Mines 1546 | -10/Mines | Core integrity fell below 50% 1773 | -10/Mines | Learned location of Zion (-6) 1797 | -10/Mines | Met a Derelict who couldn't figure out how to use a Trap Extractor 1932 | -10/Mines | Discovered new exit (range 9) 2068 | -10/Mines | Assembled infested the area 2107 | -10/Mines | Core integrity fell below 20% 2112 | -10/Mines | Destroyed by D-53 Grenadier with Mini Grenade Launcher Last Messages --------------- 01810_ Triggered Explosive Trap. 01810_ An explosion rips through the floor. 01810_ Machine disabled. 01812_ Acquired Imp. Trap Extractor. 01815_ Acquired Field Laser. 01829_ Dropped Lgt. Treads. 01932_ EXIT=FOUND 02068_ ALERT: Infestation in the mines, dispatching Demolisher response squad. 02102_ C-45 Heavy ARC bursts open, deploying its payload. 02102_ D-53 Grenadier unfolds itself. 02102_ K-01 Serf collects debris. 02105_ T-07 Excavator destroyed. 02105_ K-01 Serf destroyed. 02105_ Ion Engine destroyed. 02108_ K-01 Serf destroyed. 02110_ Beam Cannon destroyed. 02110_ Aluminum Leg destroyed. 02112_ Grenade Launcher destroyed. 02112_ Aluminum Leg destroyed. Map ----- +----------------------------------------------------+ | ????????????????????# #????????????? | | ????????????????????##### #????????????? | | ????????????????????????# #????????????? | | ????????????????????????# #????????????? | | ????????????????????????# #????????????? | | ????????????????????????# #????????????? | | ????????????????????????# #????????????? | | ????????????????????????# #????????????? | | ????????????????????????# #????????????? | | ????????????????????????# *##???????????? | | ??????????????????# ##### =##??????####? | | ??????????????????# !%[ #?????## ## | | ??????????????????###### == #????## | | ???????????????????????# =%|##????# # | | ???????????????????????# *##?????# # | | ??????????????#####????# %#??????# | | ????????????### ##???# #?????## | | ??????????### #???# ####### | | ?????????? #???## ## | | ???????????# #???# | | ????????????# #### = | | ????????????## ##%% d % ## | | ???????????## % %= ###### | | ???????????# d #????## | | ??????????## ##?????# | | ?????????## @ #??????## | | ?????????# ##???????## | | ?????????# #####?????????# | | ?????????## ##?????????????# | | ??????????#### ##??????????????# | | ?????????????## ####???????????????## | | ??????????????# ##???????????????????# | | ??????????????## ##???????????????????? | | ???????????????# #???????????????????? | | ???????????????## #???????????????????? | | ????????????????# #???????????????????? | | ????????????????## ##???????????????????? | | ?????????????????###????????????????????? | | ????????????????????????????????????????? | | ????????????????????????????????????????? | | ????????????????????????????????????????? | | ????????????????????????????????????????? | | ????????????????????????????????????????? | | ????????????????????????????????????????? | | ????????????????????????????????????????? | | ????????????????????????????????????????? | | ????????????????????????????????????????? | | ????????????????????????????????????????? | | ????????????????????????????????????????? | | | +----------------------------------------------------+ Best States ------------- Heat Dissipation 39 Energy Generation 10 Energy Capacity 450 Matter Stores 253 Matter Capacity 300 Sight Range 16 Terrain Scan Density 10 Evasion (%) 40 Recoil Reduction 2 Item Schematics ----------------- None Robot Schematics ------------------ None Fabricated ------------ Nothing Repaired ---------- Nothing Studied --------- None Alien Tech Used ----------------- None Achievements -------------- None Challenges ------------ None Game ------ Seed ScatterSigixRipteeth Manual? 0 Play Time 00:28:52 Cumulative 42.8 hours Start 2026.04.11 @ 22:46:48 End 2026.04.12 @ 01:12:57 Sessions 5 Manual Loads 0 Difficulty Rogue Special Mode None Game No. 101 Rogue 101 Adventurer 0 Explorer 0 Win Type - Total 0 Types 0/0/0/0/0/0/0/0/0/0 Lore% 15 Gallery% 26 Achievement% 18 Wizard Run 0 Options --------- Layout 2 ASCII 1 Keyboard 1 Movement Vi Keybinds 0 Fullscreen 0 Font 16/T_Terminus Map View 64x51 Zoom Use 17% Tactical HUD 1 Map Filters NONE Filters NONE Steam 1 RUN: 9c62ddae-e793-4041-9ef2-80e441575ba5